[Event "7th Sharjah Masters 2024"]
[Site "Sharjah"]
[Date "2024.05.15"]
[Round "2.18"]
[White "Sanal, Vahap"]
[Black "Sjugirov, Sanan"]
[Result "1/2-1/2"]
[ECO "B51"]
[WhiteElo "2566"]
[BlackElo "2692"]
[Annotator "TA"]
[PlyCount "124"]
[EventDate "2024.05.13"]
[EventType "swiss"]
[EventCountry "UAE"]
[SourceTitle "playchess.com"]
[Source "ChessBase"]
[SourceQuality "1"]
[TimeControl "5400+30"]

{[%evp 10,124,18,12,20,17,13,0,11,22,21,5,9,7,12,-14,0,0,0,-12,-6,-6,-6,-10,-20,-18,0,-35,-36,-39,-19,-23,-22,-23,0,0,0,0,23,14,39,22,63,40,50,30,52,37,48,43,54,50,38,49,62,56,33,0,56,0,45,6,11,0,0,0,0,0,0,0,0,0,0,-8,-11,-7,-7,-8,-9,-15,-8,-29,-29,-35,-35,-36,0,0,0,-8,-8,-8,-8,-8,0,0,0,0,0,-16,0,0,0,0,0,0,0,-8,-8,-8,-8,-11,-8,-28,0,0,0]} 1. e4 {[%emt 1:31:00]} c5 {[%emt 1:31:00]} 2. Nf3 {[%emt 0:00:30]} d6 {[%emt 0:00:30]} 3. Bb5+ {[%emt 0:00:30]} Nd7 {[%emt 0:00:30]} 4. c3 {[%emt 0:00:30]} Ngf6 {[%emt 0:00:30]} 5. Qe2 {[%emt 0:00:30]} a6 {[%emt 0:00:30]} 6. Ba4 {[%emt 0:00:30]} e6 {[%emt 0:00:30][%cal Oc5c4]} 7. Bc2 {[%emt 0:00:30]} b5 {[%emt 0:00:30]} 8. d4 {[%emt 0:00:30]} Bb7 {[%emt 0:00:30]} 9. O-O {[%emt 0:00:30]} Be7 {[%emt 0:00:30]} 10. Re1 {[%emt 0:00:30]} O-O {[%emt 0:00:30]} 11. Nbd2 {[%emt 0:00:30]} Qc7 {[%emt 0:00:30]} 12. Nf1 Rfc8 {[%emt 0:00:30]} 13. Bd3 {[%emt 0:01:00]} e5 {[%emt 0:00:30]} 14. d5 {[%emt 0:00:30]} c4 {[%emt 0:00:30]} 15. Bc2 {[%emt 0:00:30]} a5 {[%emt 0:00:30]} 16. Ng3 {[%emt 0:00:30]} g6 {[%emt 0:00:30]} 17. h3 {[%emt 0:00:30]} Nc5 {[%emt 0:00:30]} 18. Nh2 {[%emt 0:00:30]} b4 {[%emt 0:00:30]} 19. Be3 {[%emt 0:00:30]} Nd3 {[%emt 0:00:30]} 20. Bxd3 {[%emt 0:00:30]} cxd3 {[%emt 0:00:30]} 21. Qxd3 {[%emt 0:00:30]} Ba6 {[%emt 0:00:30]} (21... bxc3 $5 22. bxc3 Qxc3 $11) 22. Qd1 {[%emt 0:00:30]} bxc3 {[%emt 0:00:30]} 23. bxc3 {[%emt 0:00:30]} Qxc3 {[%emt 0:00:30]} (23... h5 $5) 24. Ng4 $1 {[%emt 0:00:30]} Nxg4 {[%emt 0:00:30]} 25. Qxg4 {[%emt 0:00:30]} Qc7 {[%emt 0:00:30]} 26. Rac1 {[%emt 0:00:30]} Qd8 {[%emt 0:00:30][%cal Oh7h5]} 27. Nf5 {[%emt 0:00:30]} Bf8 {[%emt 0:00:30]} 28. Nh6+ {[%emt 0:00:30]} Kg7 $1 {[%emt 0:00:30]} 29. Qf3 {[%emt 0:00:30]} f6 {[%emt 0:00:30]} 30. h4 {[%emt 0:00:30]} Rxc1 {[%emt 0:00:30]} 31. Rxc1 {[%emt 0:00:30]} Rc8 {[%emt 0:00:30]} 32. Rb1 {[%emt 0:00:30] White has more active pieces.} Rb8 {[%emt 0:00:30] Prevents Rb6} 33. Rc1 {[%emt 0:00:30]} Rc8 $1 {[%emt 0:00:30]} 34. Rb1 {[%emt 0:00:30]} Rb8 $1 {[%emt 0:00:30]} 35. Rxb8 {[%emt 0:00:30]} Qxb8 {[%emt 0:00:30]} 36. Kh2 {[%emt 0:00:30]} Be7 {[%emt 0:00:30]} 37. g4 {[%emt 0:00:30]} Qb4 {[%emt 0:00:30] [#] ...Bd3 is the strong threat.} 38. a3 {[%emt 0:00:30]} Qa4 {[%emt 0:00:30][%cal Oa6d3] White must now prevent ...Bd3!} (38... Qxa3 $2 {is the wrong capture.} 39. Nf5+ Kf7 (39... gxf5 $2 {loses.} 40. Bh6+ Kxh6 41. Qxa3 $18) 40. g5 $18) 39. Bd2 {[%emt 0:00:30]} Qc2 {[%emt 0:00:30]} 40. Qe3 {[%emt 0:00:30]} Qc5 {[%emt 0:00:30]} 41. g5 {[%emt 0:00:30]} Qxe3 {[%emt 0:00:30]} 42. Bxe3 $11 {[%emt 0:00:30][%mdl 4096] Endgame. KBB-KBN} Bd3 {[%emt 0:00:30] [#] ...fxg5 would now be deadly.} 43. f3 {[%emt 0:00:30]} f5 {[%emt 0:00:30]} 44. exf5 {[%emt 0:00:30]} gxf5 {[%emt 0:00:30]} 45. f4 {[%emt 0:00:30]} Kg6 {[%emt 0:00:30]} 46. Bb6 {[%emt 0:00:30]} exf4 {[%emt 0:00:30]} 47. Bxa5 {[%emt 0:00:30]} Bc4 {[%emt 0:00:30]} 48. Ng8 {[%emt 0:00:30]} Bf8 {[%emt 0:00:30][%cal Of8g7]} 49. Nf6 {[%emt 0:00:30] Hoping for h5+.} Bg7 {[%emt 0:00:30]} 50. Bd2 {[%emt 0:00:30]} Bxf6 {[%emt 0:00:30]} 51. gxf6 {[%emt 0:00:30]} Kxf6 {[%emt 0:00:30]} ({Don't play} 51... Bxd5 52. Bxf4 h5 53. Bxd6 $11) 52. Bxf4 {[%emt 0:00:30] KB-KB} Ke7 {[%emt 0:00:30]} 53. Kg3 {[%emt 0:00:30]} Bxd5 {[%emt 0:00:30]} 54. h5 {[%emt 0:00:30]} Ke6 {[%emt 0:00:30]} 55. a4 {[%emt 0:00:30]} Bc4 {[%emt 0:00:30]} 56. Kf2 {[%emt 0:00:30]} Kd5 {[%emt 0:00:30]} 57. Ke3 {[%emt 0:00:30]} Ba6 {[%emt 0:00:30]} 58. Bg5 {[%emt 0:00:30]} Kc4 {[%emt 0:00:30]} 59. a5 {[%emt 0:00:30]} d5 {[%emt 0:00:30]} 60. Bf6 {[%emt 0:00:30] Prevents d4+.} Bb7 {[%emt 0:00:30][%cal Od5d4]} 61. Kf4 {[%emt 0:00:30]} d4 {[%emt 0:00:30]} 62. Kxf5 {[%emt 0:00:30]} d3 {[%emt 0:00:30] Weighted Error Value: White=0.09 (flawless) /Black=0.05 (flawless) .  Inaccurate:     	White=3     	Black=3      OK:         	White=16    	Black=28     Best:        	White=6     	---        Strong:       	White=1     	Black=3} 1/2-1/2

[Event "7th Sharjah Masters 2024"]
[Site "Sharjah"]
[Date "2024.05.15"]
[Round "2.19"]
[White "Can, Emre"]
[Black "Sindarov, Javokhir"]
[Result "0-1"]
[ECO "C93"]
[WhiteElo "2549"]
[BlackElo "2684"]
[Annotator "TA"]
[PlyCount "84"]
[EventDate "2024.05.13"]
[EventType "swiss"]
[EventCountry "UAE"]
[SourceTitle "playchess.com"]
[Source "ChessBase"]
[SourceQuality "1"]
[TimeControl "5400+30"]

{[%evp 18,84,18,17,25,18,28,26,32,0,43,43,56,5,15,5,14,15,15,23,23,0,0,0,0,0,0,0,0,0,0,-12,0,0,0,-13,0,-39,-28,-101,-117,-138,-145,-139,-118,-125,-131,-232,-244,-227,-144,-372,-399,-377,-352,-603,-589,-1050,-709,-722,-735,-1140,-1108,-1300,-862,-2233,-2200,-1234,-579]} 1. e4 {[%emt 0:00:06]} e5 {[%emt 0:00:19]} 2. Nf3 {[%emt 0:00:18]} Nc6 {[%emt 0:00:07]} 3. Bb5 {[%emt 0:00:13]} a6 {[%emt 0:00:57]} 4. Ba4 {[%emt 0:00:16]} Nf6 {[%emt 0:00:06]} 5. O-O {[%emt 0:00:45]} Be7 {[%emt 0:00:46]} 6. d3 {[%emt 0:00:45]} b5 {[%emt 0:04:01]} 7. Bb3 {[%emt 0:00:02]} d6 {[%emt 0:05:10]} 8. c3 {[%emt 0:00:17]} O-O {[%emt 0:00:43]} 9. h3 {[%emt 0:00:32]} h6 {[%emt 0:13:44]} 10. Re1 {[%emt 0:09:35]} Re8 {[%emt 0:00:33]} 11. a4 {[%emt 0:06:42] White wants to play axb5.} Rb8 {[%emt 0:03:19]} 12. axb5 {[%emt 0:03:27]} axb5 {[%emt 0:00:08] White has an edge.} 13. d4 {[%emt 0:04:41]} exd4 {[%emt 0:17:16]} (13... Bf8 $5) 14. cxd4 {[%emt 0:00:39]} d5 {[%emt 0:00:06]} 15. exd5 {[%emt 0:28:14]} (15. Nc3 $14) 15... Nxd5 $11 {[%emt 0:01:10]} 16. Nc3 {[%emt 0:02:40]} Nxc3 {[%emt 0:12:26]} 17. bxc3 {[%emt 0:01:16]} Bd6 {[%emt 0:00:07]} 18. Rxe8+ {[%emt 0:02:54]} Qxe8 {[%emt 0:00:18]} 19. Qd3 {[%emt 0:01:44][%cal Oc1h6] [#] aiming for Bxh6!} Ne7 $1 {[%emt 0:01:02]} 20. Ne5 {[%emt 0:09:11]} Bxe5 {[%emt 0:00:47]} 21. dxe5 {[%emt 0:00:07]} Be6 {[%emt 0:00:11]} 22. Bxe6 {[%emt 0:04:23]} fxe6 {[%emt 0:00:21]} 23. Ra6 {[%emt 0:03:45]} Qc8 {[%emt 0:09:52]} 24. Ra1 {[%emt 0:06:11]} Qe8 {[%emt 0:00:26]} 25. Ra6 {[%emt 0:00:22]} Qc8 {[%emt 0:02:59]} 26. Ra1 {[%emt 0:00:07]} c5 {[%emt 0:00:33]} 27. Be3 {[%emt 0:04:06]} b4 {[%emt 0:02:09]} 28. c4 {[%emt 0:03:12] [#]} (28. cxb4 $11 cxb4 29. Rb1) 28... Nf5 $1 $17 {[%emt 0:00:30]} 29. Rb1 {[%emt 0:00:49]} Qc6 {[%emt 0:00:35]} 30. f3 {[%emt 0:00:06]} Nxe3 {[%emt 0:02:15]} 31. Qxe3 {[%emt 0:00:06][%mdl 4096] Endgame. KQR-KQR} Rd8 {[%emt 0:00:02] ...Rd4 is the strong threat.} 32. Ra1 {[%emt 0:01:19]} (32. Kh2 $17) 32... Rd4 $19 {[%emt 0:01:35]} 33. Qe2 {[%emt 0:00:20]} Qb6 {[%emt 0:05:36] ...Qd8 would now be deadly.} 34. Rb1 $2 {[%emt 0:04:33] Now White is beyond hope.} (34. Ra8+ $17 Rd8 35. Ra2) 34... Qa6 {[%emt 0:00:36]} 35. Rc1 {[%emt 0:00:53]} Qa3 {[%emt 0:00:22]} ({Weaker is} 35... b3 36. Rb1 $17) 36. Qe1 {[%emt 0:00:26]} (36. Rc2) 36... Qd3 {[%emt 0:00:18][%cal Ob4b3] Strongly threatening ...b3! Black is clearly winning.} 37. Ra1 {[%emt 0:00:23]} Rxc4 {[%emt 0:00:35] Threatens to win with ...b3.} 38. Rd1 {[%emt 0:01:08]} Qg6 {[%emt 0:00:10]} 39. Qe3 {[%emt 0:00:56]} Kh7 {[%emt 0:01:14]} 40. h4 {[%emt 0:01:20]} Rc3 {[%emt 0:01:37]} 41. Qf4 {[%emt 0:00:06]} Rc2 {[%emt 0:00:06][%csl Gc2][%cal Rg6g2]} 42. g4 {[%emt 0:00:09]} Ra2 {[%emt 0:00:15] Weighted Error Value: White=0.79/Black=0.30.  Loses game:     	White=1     	---        Mistake:       	White=4     	---        Inaccurate:     	White=3     	Black=2      OK:         	White=8     	Black=10     Best:        	White=1     	Black=2      Strong:       	---       	Black=2} (42... h5 $142 43. Qg5 Qxg5 44. hxg5 b3) 0-1

[Event "7th Sharjah Masters 2024"]
[Site "Sharjah"]
[Date "2024.05.15"]
[Round "2.20"]
[White "Nihal Sarin"]
[Black "Mchedlishvili, Mikheil"]
[Result "1-0"]
[ECO "C81"]
[WhiteElo "2680"]
[BlackElo "2569"]
[Annotator "RC"]
[PlyCount "105"]
[EventDate "2024.05.13"]
[EventType "swiss"]
[EventCountry "UAE"]
[SourceTitle "playchess.com"]
[Source "ChessBase"]
[SourceQuality "1"]
[TimeControl "5400+30"]

1. e4 {[%emt 0:00:56]} e5 {[%emt 0:00:30]} 2. Nf3 {[%emt 0:00:06]} Nc6 {[%emt 0:00:35]} 3. Bb5 {[%emt 0:00:25]} a6 {[%emt 0:00:31]} 4. Ba4 {[%emt 0:00:05]} Nf6 {[%emt 0:00:26]} 5. O-O {[%emt 0:02:08]} Nxe4 {[%emt 0:00:56]} 6. d4 {[%emt 0:01:18]} b5 {[%emt 0:00:20]} 7. Bb3 {[%emt 0:00:06]} d5 {[%emt 0:00:19]} 8. dxe5 {[%emt 0:03:15]} Be6 {[%emt 0:00:17]} 9. Qe2 {[%emt 0:05:29]} Nc5 {[%emt 0:02:50]} 10. Rd1 {[%emt 0:02:16]} Nxb3 {[%emt 0:01:09]} 11. axb3 {[%emt 0:01:20]} Be7 {[%emt 0:03:59]} 12. h3 {[%emt 0:08:23]} O-O {[%emt 0:03:25]} 13. Be3 {[%emt 0:10:41]} f6 {[%emt 0:15:40]} 14. exf6 {[%emt 0:08:32]} Bxf6 {[%emt 0:01:07]} 15. Nc3 {[%emt 0:00:10]} Bf7 {[%emt 0:08:47]} 16. Qd2 {[%emt 0:04:32]} Ne5 {[%emt 0:07:45]} 17. Nxe5 {[%emt 0:04:32]} Bxe5 {[%emt 0:00:37]} 18. b4 {[%emt 0:01:04]} c6 {[%emt 0:02:48]} 19. Bd4 {[%emt 0:02:56]} Bc7 {[%emt 0:03:28]} 20. Ne2 {[%emt 0:00:39]} Bg6 {[%emt 0:20:50]} 21. Qc3 {[%emt 0:17:45]} Qd7 {[%emt 0:00:51]} 22. Re1 {[%emt 0:00:32]} Rf7 {[%emt 0:03:21]} 23. Ng3 {[%emt 0:00:38]} h5 {[%emt 0:04:42]} 24. Re3 {[%emt 0:04:50]} Bf4 {[%emt 0:01:55]} 25. Re2 {[%emt 0:00:45]} h4 {[%emt 0:08:05]} 26. Nf1 {[%emt 0:00:27]} Bc7 {[%emt 0:01:50]} 27. Nd2 {[%emt 0:01:00]} Bh5 {[%emt 0:00:40]} 28. Ree1 {[%emt 0:00:21]} Bd6 {[%emt 0:03:35]} 29. Nb3 {[%emt 0:07:41]} Rf3 {[%emt 0:02:29]} 30. Re3 {[%emt 0:00:05]} Rxe3 {[%emt 0:00:06]} 31. Bxe3 {[%emt 0:04:14]} Bg6 {[%emt 0:00:11]} 32. Nc5 {[%emt 0:06:03]} Qf5 {[%emt 0:00:52]} 33. Nd3 {[%emt 0:00:20]} Qd7 {[%emt 0:01:10]} 34. Ne5 {[%emt 0:02:04]} Qe8 {[%emt 0:00:27]} 35. Bd4 {[%emt 0:00:56]} Bxc2 {[%emt 0:00:18]} 36. Re1 {[%emt 0:01:23]} Be4 {[%emt 0:00:18]} 37. f3 {[%emt 0:00:18]} a5 {[%emt 0:00:32]} 38. bxa5 {[%emt 0:00:36]} c5 {[%emt 0:00:41]} 39. Bxc5 {[%emt 0:00:33]} Bxe5 {[%emt 0:00:28]} 40. Bd4 {[%emt 0:00:24]} Rc8 {[%emt 0:00:39]} 41. Bxe5 {[%emt 0:00:31]} Rxc3 {[%emt 0:00:05]} 42. Bxc3 {[%emt 0:00:01]} b4 {[%emt 0:01:05]} 43. Bd4 {[%emt 0:00:11]} Qb5 {[%emt 0:00:26]} 44. fxe4 {[%emt 0:00:06]} Qxa5 {[%emt 0:00:10]} 45. e5 {[%emt 0:01:15]} b3 {[%emt 0:00:22]} 46. Rd1 {[%emt 0:00:19]} Kf7 {[%emt 0:00:45]} 47. Bc3 {[%emt 0:00:17]} Qa7+ {[%emt 0:00:39]} 48. Kh2 {[%emt 0:00:21]} Ke6 {[%emt 0:00:19]} 49. Rd4 {[%emt 0:00:06]} g5 {[%emt 0:00:18]} 50. Rg4 {[%emt 0:00:23]} Qe3 {[%emt 0:00:34]} 51. Bd4 {[%emt 0:00:16]} Qd2 {[%emt 0:00:34]} 52. Bc3 {[%emt 0:00:09]} Qe3 {[%emt 0:00:45]} 53. Bd4 {[%emt 0:00:07]} 1-0

[Event "7th Sharjah Masters 2024"]
[Site "Sharjah"]
[Date "2024.05.15"]
[Round "2.21"]
[White "Horvath, Dominik"]
[Black "Martirosyan, Haik M."]
[Result "1/2-1/2"]
[ECO "C67"]
[WhiteElo "2554"]
[BlackElo "2679"]
[Annotator "TA"]
[PlyCount "50"]
[EventDate "2024.05.13"]
[EventType "swiss"]
[EventCountry "UAE"]
[SourceTitle "playchess.com"]
[Source "ChessBase"]
[SourceQuality "1"]
[TimeControl "5400+30"]

{[%evp 15,50,18,13,9,8,5,0,10,15,0,3,0,0,0,0,0,0,0,0,0,0,-16,0,0,0,0,0,0,0,0,0,0,0,0,0,0,0]} 1. e4 {[%emt 0:00:05]} e5 {[%emt 0:00:37]} 2. Nf3 {[%emt 0:00:09]} Nc6 {[%emt 0:00:08]} 3. Bb5 {[%emt 0:00:05]} Nf6 {[%emt 0:00:09]} 4. O-O {[%emt 0:00:44][%cal Bh1f1,Bf1e1,Be1e5][%mdl 32]} Nxe4 {[%emt 0:00:07]} 5. Re1 {[%emt 0:00:05]} Nd6 {[%emt 0:00:21]} 6. Nxe5 {[%emt 0:00:07]} Be7 {[%emt 0:00:06]} 7. Bf1 {[%emt 0:00:05]} Nxe5 {[%emt 0:00:08]} 8. Rxe5 {[%emt 0:00:05]} O-O {[%emt 0:00:08] The position is equal.} 9. Nc3 {[%emt 0:01:33]} Ne8 {[%emt 0:00:25]} 10. d4 {[%emt 0:00:09] Black is weak on the light squares} Bf6 {[%emt 0:04:07]} 11. Re1 {[%emt 0:01:00]} d5 {[%emt 0:00:59]} 12. b3 {[%emt 0:00:09]} c6 {[%emt 0:08:03]} 13. Ba3 {[%emt 0:00:58]} Nd6 {[%emt 0:00:08][%cal Be8d6,Bd6f5,Bf5d4][%mdl 32]} 14. Qf3 {[%emt 0:00:05]} Nf5 {[%emt 0:21:27]} 15. Bxf8 {[%emt 0:01:26] [#] aiming for Ba3.} (15. Ne2 {simplifies} Re8 16. c3 Bd7 17. Ng3) 15... Nxd4 {[%emt 0:00:15]} 16. Qxf6 {[%emt 0:00:18]} gxf6 {[%emt 0:00:01]} (16... Qxf6 $2 17. Re8 Nf3+ (17... Nxc2 18. Be7#) 18. Kh1 $18) 17. Be7 {[%emt 0:00:08]} Qd7 {[%emt 0:05:32]} 18. Rad1 $1 {[%emt 0:00:53]} Qg4 {[%emt 0:02:06]} 19. Rd3 {[%emt 0:07:40] Against Nf3+} Nf5 $1 {[%emt 0:01:26]} (19... Nxc2 $2 {loses.} 20. Rc1 Qf4 (20... Qe6 $2 21. Rg3+ Kh8 22. Bf8 $18) 21. Rg3+ (21. Rxc2 Bf5 $16) 21... Kh8 22. Rxc2 $18) 20. Ne4 {[%emt 0:02:12]} dxe4 {[%emt 0:09:03]} 21. Rd8+ {[%emt 0:00:07]} Kg7 {[%emt 0:00:03]} 22. Bf8+ {[%emt 0:00:05]} Kg6 {[%emt 0:00:38]} 23. Ba3 {[%emt 0:00:09]} Kg7 {[%emt 0:08:33] Wards off Rg8+} 24. Bf8+ $1 {[%emt 0:00:16]} Kg6 {[%emt 0:00:05]} 25. Ba3 {[%emt 0:00:03]} Kg7 {[%emt 0:00:06] Against Rg8+. Not much happened in this game.   Weighted Error Value: White=0.01 (flawless) /Black=0.00 (flawless) .  OK:         	White=10    	Black=8      Best:        	White=2     	Black=4      Strong:       	White=2     	Black=1} 1/2-1/2

[Event "7th Sharjah Masters 2024"]
[Site "Sharjah"]
[Date "2024.05.15"]
[Round "2.22"]
[White "Shankland, Sam"]
[Black "Sivuk, Vitaly"]
[Result "1-0"]
[ECO "A07"]
[WhiteElo "2671"]
[BlackElo "2544"]
[Annotator "TA"]
[PlyCount "111"]
[EventDate "2024.05.13"]
[EventType "swiss"]
[EventCountry "UAE"]
[SourceTitle "playchess.com"]
[Source "ChessBase"]
[SourceQuality "1"]
[TimeControl "5400+30"]

{[%evp 24,111,6,0,0,-14,35,41,48,22,44,24,58,31,69,49,53,51,58,52,75,39,47,47,63,56,93,98,129,121,148,148,198,160,172,166,160,168,191,150,245,255,248,250,231,253,479,468,497,497,783,497,497,497,496,482,635,625,835,487,765,741,719,708,713,616,827,704,858,858,858,846,827,793,1012,1012,842,795,1204,1121,5197,2417,12796,1496,29951,12814,29980,29981,29981,29979]} 1. Nf3 {[%emt 0:00:10]} d5 {[%emt 0:00:23]} 2. g3 {[%emt 0:00:07]} Nf6 {[%emt 0:08:32]} 3. Bg2 {[%emt 0:00:06]} e6 {[%emt 0:00:05]} 4. O-O {[%emt 0:00:12]} Be7 {[%emt 0:00:07]} 5. d3 {[%emt 0:00:23]} O-O {[%emt 0:00:12]} 6. Nbd2 {[%emt 0:00:06]} Nc6 {[%emt 0:01:04]} 7. d4 {[%emt 0:00:44] A07: Réti Opening: New York and Capablanca Systems.} a5 {[%emt 1:23:37]} 8. c4 {[%emt 0:04:51]} b6 {[%emt 0:00:00]} 9. b3 {[%emt 0:05:23]} Bb7 {[%emt 0:00:00]} 10. Bb2 $146 {[%emt 0:01:33]} ({Predecessor:} 10. a3 Na7 11. Bb2 Nc8 12. Ne5 c6 13. Rc1 Nd6 14. Qc2 Rc8 15. c5 bxc5 16. dxc5 {1-0 Lagarde,M (2625)-Deac,B (2639) Titled Tuesday intern op 14th Sept blitz 2021 (6)}) 10... a4 {[%emt 0:00:00]} 11. cxd5 {[%emt 0:05:20]} exd5 {[%emt 0:00:00]} 12. bxa4 {[%emt 0:01:06]} Bd6 {[%emt 0:00:00]} 13. Nb1 {[%emt 0:02:13]} Ne4 {[%emt 0:00:00]} 14. Nfd2 {[%emt 0:01:26]} Nxd2 {[%emt 0:00:00]} (14... f5 $11 {should be considered.}) 15. Nxd2 $14 {[%emt 0:01:03]} Bb4 {[%emt 0:00:00]} 16. Nb1 {[%emt 0:08:04]} Na5 {[%emt 0:00:00]} 17. Bc3 {[%emt 0:02:18]} Qe7 {[%emt 0:00:00]} 18. Qc2 {[%emt 0:03:00]} Bd6 {[%emt 0:00:00]} 19. e3 {[%emt 0:04:42]} Qd7 {[%emt 0:00:00]} 20. Bxa5 {[%emt 0:02:55]} Rxa5 {[%emt 0:00:00]} 21. Nc3 {[%emt 0:00:04]} Rfa8 {[%emt 0:00:00]} 22. Qb3 {[%emt 0:02:29]} Bf8 {[%emt 0:00:00]} 23. Rfc1 {[%emt 0:00:51]} Rd8 {[%emt 0:00:00]} 24. Rab1 {[%emt 0:02:24]} Ba8 {[%emt 0:00:00]} 25. Qd1 {[%emt 0:06:42]} Ra6 {[%emt 0:00:00]} 26. Qe2 {[%emt 0:04:01]} Ra5 {[%emt 0:00:48]} 27. Rb5 {[%emt 0:01:11]} c5 {[%emt 0:01:17]} (27... Rxb5 $16 28. axb5 Ba3) 28. Rxb6 {[%emt 0:08:17]} cxd4 {[%emt 0:00:21]} 29. exd4 {[%emt 0:00:03]} Rc8 {[%emt 0:01:52]} 30. Qb2 {[%emt 0:06:54]} Ra7 {[%emt 0:01:24]} 31. Nb5 {[%emt 0:03:48]} Rxa4 {[%emt 0:00:56]} (31... Rxc1+ $16 32. Qxc1 Qd8) 32. Rxc8 $18 {[%emt 0:00:04]} Qxc8 {[%emt 0:00:05] [#]} 33. Nc3 $1 {[%emt 0:00:20]} Ra3 {[%emt 0:04:32]} 34. Nxd5 {[%emt 0:00:46]} Rd3 $2 {[%emt 0:01:31]} (34... Bxd5 {was worth a try.} 35. Bxd5 Qd7) 35. Ne7+ $18 {[%emt 0:01:37]} Bxe7 {[%emt 0:00:05]} 36. Rb8 {[%emt 0:00:04]} Rd1+ {[%emt 0:00:05]} 37. Bf1 {[%emt 0:00:02]} Qf8 {[%emt 0:00:08]} 38. Rxf8+ {[%emt 0:00:30]} Bxf8 {[%emt 0:00:05]} 39. f4 {[%emt 0:00:45]} Bd5 {[%emt 0:00:50]} 40. Kf2 {[%emt 0:00:16]} g6 {[%emt 0:00:20]} 41. Bg2 {[%emt 0:00:21]} Bxg2 {[%emt 0:00:20]} (41... Be6 $142 42. Ke2 Bg4+ 43. Bf3 Bxf3+ 44. Kxf3 Rd3+ 45. Ke2 Ra3) 42. Kxg2 $18 {[%emt 0:00:04]} Bg7 {[%emt 0:00:38]} 43. Qb8+ {[%emt 0:02:05]} Bf8 {[%emt 0:00:05]} 44. Qa7 {[%emt 0:00:13]} Rd2+ {[%emt 0:00:29]} 45. Kf1 {[%emt 0:01:35]} Kg7 {[%emt 0:01:34]} 46. a4 {[%emt 0:01:44]} Bb4 {[%emt 0:00:09]} 47. Qb8 {[%emt 0:01:26]} Be7 {[%emt 0:00:42]} 48. Qb7 {[%emt 0:00:39]} Bf6 {[%emt 0:00:24]} 49. d5 {[%emt 0:00:09]} Ra2 {[%emt 0:01:02]} 50. Qc6 {[%emt 0:00:36]} h5 {[%emt 0:00:47]} 51. d6 {[%emt 0:00:44]} Rxh2 {[%emt 0:00:39]} 52. d7 {[%emt 0:00:17]} Rd2 {[%emt 0:00:41]} 53. a5 {[%emt 0:00:05]} h4 {[%emt 0:00:29]} 54. gxh4 {[%emt 0:00:07]} Rd4 {[%emt 0:00:09]} 55. a6 {[%emt 0:00:13]} Rxf4+ {[%emt 0:00:12]} 56. Ke2 {[%emt 0:00:04]} 1-0

[Event "7th Sharjah Masters 2024"]
[Site "Sharjah"]
[Date "2024.05.15"]
[Round "2.23"]
[White "Yakubboev, Nodirbek"]
[Black "Erdos, Viktor"]
[Result "1-0"]
[ECO "D37"]
[WhiteElo "2665"]
[BlackElo "2546"]
[Annotator "TA"]
[PlyCount "75"]
[EventDate "2024.05.13"]
[EventType "swiss"]
[EventCountry "UAE"]
[SourceTitle "playchess.com"]
[Source "ChessBase"]
[SourceQuality "1"]
[TimeControl "5400+30"]

{[%evp 9,75,20,18,15,39,34,29,21,30,27,31,26,52,22,17,22,108,111,93,106,98,106,108,114,103,114,100,106,104,108,110,110,88,115,104,91,108,116,121,121,132,127,130,108,171,170,409,429,420,404,610,317,349,297,292,377,376,383,371,354,501,476,1056,1003,1270,746,714,696]} 1. d4 {[%emt 0:00:08]} Nf6 {[%emt 0:00:37]} 2. Nf3 {[%emt 0:00:13]} d5 {[%emt 0:00:08]} 3. c4 {[%emt 0:00:28]} e6 {[%emt 0:00:05]} 4. Nc3 {[%emt 0:00:11]} Nbd7 {[%emt 0:00:10]} 5. Bf4 {[%emt 0:00:51]} dxc4 {[%emt 0:05:04]} 6. e3 {[%emt 0:00:19]} b5 {[%emt 0:00:05]} 7. Nxb5 {[%emt 0:00:07]} Bb4+ {[%emt 0:00:12]} 8. Nd2 {[%emt 0:01:39] White has an edge.} Nd5 {[%emt 0:01:04]} 9. Bg3 {[%emt 0:00:10]} N7b6 {[%emt 0:20:06]} 10. a3 {[%emt 0:03:06]} Ba5 {[%emt 0:02:14]} 11. Rc1 {[%emt 0:07:52][%cal Oe3e4]} O-O {[%emt 0:01:01]} 12. Nc3 $36 {[%emt 0:04:47][%mdl 2048] White is more active.} Rb8 {[%emt 0:23:52]} (12... Bb7 $11 {remains equal.}) 13. Bxc4 $16 {[%emt 0:37:23]} Bxc3 {[%emt 0:20:26]} 14. bxc3 {[%emt 0:00:07]} Nxc4 {[%emt 0:00:03]} 15. Nxc4 {[%emt 0:00:05]} Ba6 {[%emt 0:01:50]} 16. Ne5 {[%emt 0:07:59]} Qe8 {[%emt 0:00:53]} 17. c4 {[%emt 0:08:19]} Nb6 {[%emt 0:00:04][%cal Bd5b6,Bb6c4,Bc4b2][%mdl 32]} 18. O-O {[%emt 0:02:37] White is more active.} f6 {[%emt 0:00:03] [#]} 19. Nd3 {[%emt 0:00:32]} Nxc4 {[%emt 0:00:12]} 20. Re1 {[%emt 0:00:31]} Nb2 {[%emt 0:02:56]} 21. Nxb2 {[%emt 0:00:06]} Rxb2 {[%emt 0:00:03]} 22. Rxc7 {[%emt 0:00:57]} Rf7 {[%emt 0:00:03]} 23. Rc5 {[%emt 0:02:00]} Rfb7 {[%emt 0:02:44]} 24. h4 {[%emt 0:01:31][%cal Bh2h4,Bh4h5][%mdl 32]} h6 {[%emt 0:02:41]} 25. Kh2 {[%emt 0:02:38]} Qg6 {[%emt 0:03:35]} 26. Qf3 {[%emt 0:18:54]} Bd3 {[%emt 0:01:39]} (26... Kh7 $16 {is a better defense.} 27. h5 Qf7) 27. e4 $18 {[%emt 0:00:00]} Bb1 {[%emt 0:00:02]} (27... Bb5 28. e5 Be8 29. exf6 Qxf6) 28. h5 {[%emt 0:00:00]} Qf7 {[%emt 0:00:04]} 29. d5 {[%emt 0:00:00]} R2b5 {[%emt 0:03:58]} (29... Kh7 $142 30. d6 R7b5) 30. Rc6 {[%emt 0:00:00][%cal Bc5c6,Bc6c8,Bc8e8][%mdl 32] Black is weak on the dark squares} f5 {[%emt 0:06:04]} 31. dxe6 {[%emt 0:00:00]} (31. Rxe6 Bxe4 32. Qe2 Rb2 $11) 31... Qe8 {[%emt 0:00:10]} 32. exf5 {[%emt 0:01:04]} Rxf5 {[%emt 0:00:11]} 33. Qc3 {[%emt 0:00:06] [#] Rc8 would now be deadly.} Kh7 {[%emt 0:04:05]} 34. Rc8 {[%emt 0:01:09]} Qxh5+ {[%emt 0:00:28]} (34... Qe7 {keeps fighting.} 35. Kg1 Rxh5) 35. Kg1 {[%emt 0:00:02] Threatens to win with e7. White is clearly winning.} Ba2 {[%emt 0:00:35]} (35... Rfb5 $142 36. e7 Bg6) 36. e7 {[%emt 0:00:17]} Bf7 {[%emt 0:00:31]} 37. e8=Q {[%emt 0:00:18]} Bxe8 {[%emt 0:00:09]} 38. Rcxe8 {[%emt 0:00:05] Weighted Error Value: White=0.20 (precise) /Black=0.33.  Mistake:       	---       	Black=6      Inaccurate:     	White=2     	---        OK:         	White=19    	Black=11     Best:        	White=3     	Black=3} 1-0